[Event "*** Titled Tuesday Blitz"]
[Site "Chess.com"]
[Date "2020.12.01"]
[Round "7"]
[White "glebus008"]
[Black "Dreamer_01"]
[Result "1-0"]
[WhiteElo "2247"]
[BlackElo "2351"]
[TimeControl "180+1"]
[EndTime "11:16:43 PST"]
[Termination "glebus008 won on time"]

1. e4 {[%clk 0:03:00.9]} 1... d6 {[%clk 0:02:53.9]} 2. d4 {[%clk 0:02:59.3]}
2... c6 {[%clk 0:02:51]} 3. Nc3 {[%clk 0:02:56.2]} 3... Nf6 {[%clk 0:02:49.1]}
4. f4 {[%clk 0:02:54.7]} 4... Bg4 {[%clk 0:02:43.8]} 5. Qd3 {[%clk 0:02:47.7]}
5... g6 {[%clk 0:02:22.9]} 6. h3 {[%clk 0:02:47]} 6... Bc8 {[%clk 0:02:17.8]} 7.
Bd2 {[%clk 0:02:46.9]} 7... Qb6 {[%clk 0:02:12.5]} 8. O-O-O {[%clk 0:02:45.3]}
8... Bg7 {[%clk 0:02:08.7]} 9. Nf3 {[%clk 0:02:42.2]} 9... d5 {[%clk 0:02:06]}
10. e5 {[%clk 0:02:38.1]} 10... Bf5 {[%clk 0:02:05.3]} 11. exf6 {[%clk
0:02:36.5]} 11... Bxd3 {[%clk 0:02:04.6]} 12. fxg7 {[%clk 0:02:36.6]} 12... Rg8
{[%clk 0:02:00.1]} 13. Bxd3 {[%clk 0:02:36.6]} 13... Rxg7 {[%clk 0:01:58.4]} 14.
Rhe1 {[%clk 0:02:34.4]} 14... Nd7 {[%clk 0:01:56]} 15. f5 {[%clk 0:02:29]} 15...
gxf5 {[%clk 0:01:52.6]} 16. Bxf5 {[%clk 0:02:26.2]} 16... e6 {[%clk 0:01:52.2]}
17. g4 {[%clk 0:02:14]} 17... O-O-O {[%clk 0:01:49.7]} 18. Bd3 {[%clk
0:02:06.4]} 18... Qc7 {[%clk 0:01:49.2]} 19. Ne5 {[%clk 0:02:03.4]} 19... Nxe5
{[%clk 0:01:48.8]} 20. dxe5 {[%clk 0:02:03.5]} 20... c5 {[%clk 0:01:40.9]} 21.
Nb5 {[%clk 0:02:01.2]} 21... Qb6 {[%clk 0:01:40.5]} 22. Nd6+ {[%clk 0:01:57.2]}
22... Kb8 {[%clk 0:01:39.7]} 23. Bh6 {[%clk 0:01:50.3]} 23... Rgg8 {[%clk
0:01:23.5]} 24. Nxf7 {[%clk 0:01:48.5]} 24... Rd7 {[%clk 0:01:19.1]} 25. Nd6
{[%clk 0:01:42]} 25... c4 {[%clk 0:01:15.3]} 26. Bf1 {[%clk 0:01:31.7]} 26... c3
{[%clk 0:01:13.7]} 27. b3 {[%clk 0:01:18.7]} 27... Qa5 {[%clk 0:01:04.6]} 28.
Kb1 {[%clk 0:01:16.1]} 28... Rf8 {[%clk 0:00:53]} 29. Bd3 {[%clk 0:01:07.5]}
29... Rf2 {[%clk 0:00:51.4]} 30. Rf1 {[%clk 0:01:02.3]} 30... Rxf1 {[%clk
0:00:50]} 31. Rxf1 {[%clk 0:01:01.6]} 31... d4 {[%clk 0:00:44.5]} 32. Nc4 {[%clk
0:00:56.9]} 32... Qd5 {[%clk 0:00:40.9]} 33. a4 {[%clk 0:00:35]} 33... Rd8
{[%clk 0:00:34.9]} 34. Rf7 {[%clk 0:00:33.6]} 34... Qh1+ {[%clk 0:00:30.7]} 35.
Ka2 {[%clk 0:00:33]} 35... Qxh3 {[%clk 0:00:30.5]} 36. g5 {[%clk 0:00:23.2]}
36... Qg3 {[%clk 0:00:14.2]} 37. Rxh7 {[%clk 0:00:21.4]} 37... a6 {[%clk
0:00:08.5]} 38. a5 {[%clk 0:00:20]} 38... Rc8 {[%clk 0:00:07.2]} 39. Be4 {[%clk
0:00:15.8]} 39... Rc7 {[%clk 0:00:06.4]} 40. Rxc7 {[%clk 0:00:14.3]} 40... Kxc7
{[%clk 0:00:06.2]} 41. g6 {[%clk 0:00:12.7]} 41... Qg4 {[%clk 0:00:02.9]} 42. g7
{[%clk 0:00:12.1]} 42... Qxe4 {[%clk 0:00:03.1]} 43. g8=Q {[%clk 0:00:09.8]}
43... Qxc2+ {[%clk 0:00:02.8]} 44. Ka3 {[%clk 0:00:08.9]} 44... Qb1 {[%clk
0:00:02.6]} 45. Kb4 {[%clk 0:00:08.6]} 1-0

[Event "*** Titled Tuesday Blitz"]
[Site "Chess.com"]
[Date "2020.12.01"]
[Round "7"]
[White "Neftegor"]
[Black "anpospan"]
[Result "0-1"]
[WhiteElo "2505"]
[BlackElo "2416"]
[TimeControl "180+1"]
[EndTime "11:16:44 PST"]
[Termination "anpospan won on time"]

1. Nf3 {[%clk 0:03:00.9]} 1... c5 {[%clk 0:02:59.6]} 2. c4 {[%clk 0:03:00]} 2...
b6 {[%clk 0:02:59.5]} 3. Nc3 {[%clk 0:02:58.6]} 3... Bb7 {[%clk 0:02:59.8]} 4.
d4 {[%clk 0:02:57]} 4... cxd4 {[%clk 0:02:59.4]} 5. Nxd4 {[%clk 0:02:56.9]} 5...
e6 {[%clk 0:02:59.8]} 6. e4 {[%clk 0:02:54.4]} 6... d6 {[%clk 0:02:58.9]} 7. f3
{[%clk 0:02:53.9]} 7... a6 {[%clk 0:02:58.9]} 8. Be3 {[%clk 0:02:53.7]} 8... Qc7
{[%clk 0:02:58.9]} 9. Be2 {[%clk 0:02:53.6]} 9... Nd7 {[%clk 0:02:58.6]} 10. O-O
{[%clk 0:02:53.3]} 10... Ngf6 {[%clk 0:02:58.6]} 11. Qd2 {[%clk 0:02:51.5]}
11... Be7 {[%clk 0:02:58.6]} 12. a4 {[%clk 0:02:49.8]} 12... Rc8 {[%clk
0:02:57.9]} 13. a5 {[%clk 0:02:49.6]} 13... bxa5 {[%clk 0:02:55.9]} 14. Nb3
{[%clk 0:02:49.5]} 14... O-O {[%clk 0:02:53.2]} 15. Nxa5 {[%clk 0:02:49.4]}
15... Ba8 {[%clk 0:02:52.5]} 16. Rfb1 {[%clk 0:02:40.7]} 16... d5 {[%clk
0:02:22.4]} 17. cxd5 {[%clk 0:02:33.5]} 17... exd5 {[%clk 0:02:21.1]} 18. Nxd5
{[%clk 0:02:32.8]} 18... Bxd5 {[%clk 0:02:10.6]} 19. exd5 {[%clk 0:02:32.6]}
19... Bc5 {[%clk 0:02:10]} 20. Bxa6 {[%clk 0:02:15.3]} 20... Qf4 {[%clk
0:02:03.1]} 21. Nc4 {[%clk 0:01:59.3]} 21... Bxe3+ {[%clk 0:01:34.8]} 22. Nxe3
{[%clk 0:01:58.6]} 22... Rce8 {[%clk 0:01:07]} 23. Re1 {[%clk 0:01:45.5]} 23...
Nc5 {[%clk 0:01:01.8]} 24. Bf1 {[%clk 0:01:33.6]} 24... Nb3 {[%clk 0:01:00.9]}
25. g3 {[%clk 0:00:45.7]} 25... Nxd2 {[%clk 0:00:52.4]} 26. gxf4 {[%clk
0:00:44.3]} 26... Nxf3+ {[%clk 0:00:52.3]} 27. Kf2 {[%clk 0:00:44.3]} 27... Nxe1
{[%clk 0:00:51.5]} 28. Rxe1 {[%clk 0:00:44.2]} 28... Rb8 {[%clk 0:00:31.2]} 29.
Re2 {[%clk 0:00:43.7]} 29... Rfd8 {[%clk 0:00:29.9]} 30. Bg2 {[%clk 0:00:41.3]}
30... g6 {[%clk 0:00:29]} 31. Rd2 {[%clk 0:00:40.8]} 31... Rb4 {[%clk
0:00:27.6]} 32. f5 {[%clk 0:00:36]} 32... g5 {[%clk 0:00:24.6]} 33. h3 {[%clk
0:00:28.4]} 33... h5 {[%clk 0:00:22.5]} 34. Ke2 {[%clk 0:00:21.6]} 34... Rdb8
{[%clk 0:00:22.1]} 35. Nd1 {[%clk 0:00:20.1]} 35... Ne4 {[%clk 0:00:20.4]} 36.
Bxe4 {[%clk 0:00:20.1]} 36... Rxe4+ {[%clk 0:00:20.4]} 37. Kf2 {[%clk
0:00:19.1]} 37... Rf4+ {[%clk 0:00:19.7]} 38. Kg2 {[%clk 0:00:17.8]} 38... Rxf5
{[%clk 0:00:19.8]} 39. Ne3 {[%clk 0:00:16.8]} 39... Re5 {[%clk 0:00:19.5]} 40.
Nc4 {[%clk 0:00:16.8]} 40... Re4 {[%clk 0:00:18.6]} 41. Nd6 {[%clk 0:00:15]}
41... Reb4 {[%clk 0:00:18.1]} 42. Rd1 {[%clk 0:00:08.9]} 42... Rxb2+ {[%clk
0:00:17.7]} 43. Kf3 {[%clk 0:00:09.1]} 43... R8b3+ {[%clk 0:00:17.2]} 44. Ke4
{[%clk 0:00:09.2]} 44... Re2+ {[%clk 0:00:16.4]} 45. Kf5 {[%clk 0:00:09.1]}
45... Rg3 {[%clk 0:00:11]} 46. Ne4 {[%clk 0:00:05.8]} 46... Rxe4 {[%clk
0:00:08]} 47. Kxe4 {[%clk 0:00:05.8]} 47... Kf8 {[%clk 0:00:08]} 48. Ke5 {[%clk
0:00:01]} 48... Ke7 {[%clk 0:00:07.4]} 0-1

[Event "*** Titled Tuesday Blitz"]
[Site "Chess.com"]
[Date "2020.12.01"]
[Round "7"]
[White "esskeettit"]
[Black "picturesquecheck"]
[Result "1-0"]
[WhiteElo "2451"]
[BlackElo "2165"]
[TimeControl "180+1"]
[EndTime "11:16:44 PST"]
[Termination "esskeettit won on time"]

1. d4 {[%clk 0:03:00.9]} 1... Nf6 {[%clk 0:02:57.8]} 2. c4 {[%clk 0:03:00.9]}
2... e6 {[%clk 0:02:58]} 3. Nc3 {[%clk 0:03:00.6]} 3... d5 {[%clk 0:02:58.5]} 4.
cxd5 {[%clk 0:03:00.3]} 4... exd5 {[%clk 0:02:59.4]} 5. Bg5 {[%clk 0:02:59.9]}
5... Be7 {[%clk 0:02:58.4]} 6. e3 {[%clk 0:02:56.3]} 6... Bf5 {[%clk 0:02:57.6]}
7. Qb3 {[%clk 0:02:53.7]} 7... b6 {[%clk 0:02:31.9]} 8. Bxf6 {[%clk 0:02:44.4]}
8... Bxf6 {[%clk 0:02:31.7]} 9. Qxd5 {[%clk 0:02:41.3]} 9... Qxd5 {[%clk
0:02:29]} 10. Nxd5 {[%clk 0:02:42.2]} 10... Bd8 {[%clk 0:02:29.1]} 11. Nf3
{[%clk 0:02:29.2]} 11... c6 {[%clk 0:02:28.6]} 12. Nc3 {[%clk 0:02:29.4]} 12...
O-O {[%clk 0:02:28.2]} 13. Be2 {[%clk 0:02:26]} 13... Re8 {[%clk 0:02:26]} 14.
O-O {[%clk 0:02:24.4]} 14... Nd7 {[%clk 0:02:26.2]} 15. Rac1 {[%clk 0:02:23.7]}
15... c5 {[%clk 0:02:24.1]} 16. dxc5 {[%clk 0:02:22.4]} 16... Nxc5 {[%clk
0:02:24.1]} 17. Nb5 {[%clk 0:02:12.6]} 17... Be6 {[%clk 0:02:09]} 18. b3 {[%clk
0:01:59.6]} 18... a6 {[%clk 0:02:06.7]} 19. Nbd4 {[%clk 0:01:53.8]} 19... Bg4
{[%clk 0:02:03.3]} 20. h3 {[%clk 0:01:48.3]} 20... Bh5 {[%clk 0:02:02.3]} 21.
Rfd1 {[%clk 0:01:43]} 21... Bf6 {[%clk 0:02:01]} 22. Nf5 {[%clk 0:01:26.5]}
22... Bg6 {[%clk 0:01:58.5]} 23. Nd6 {[%clk 0:01:26.5]} 23... Red8 {[%clk
0:01:56.9]} 24. Nc4 {[%clk 0:01:20.9]} 24... Rdb8 {[%clk 0:01:47.5]} 25. Nxb6
{[%clk 0:01:14.4]} 25... Nxb3 {[%clk 0:01:40.8]} 26. Rc6 {[%clk 0:00:48.2]}
26... Na5 {[%clk 0:01:29.5]} 27. Rcd6 {[%clk 0:00:43.6]} 27... Ra7 {[%clk
0:00:52.1]} 28. Nd7 {[%clk 0:00:43]} 28... Rc8 {[%clk 0:00:47]} 29. Nxf6+ {[%clk
0:00:40]} 29... gxf6 {[%clk 0:00:47]} 30. Rxa6 {[%clk 0:00:31.9]} 30... Rxa6
{[%clk 0:00:41.4]} 31. Bxa6 {[%clk 0:00:32.8]} 31... Ra8 {[%clk 0:00:38.7]} 32.
Bb5 {[%clk 0:00:31.2]} 32... Kg7 {[%clk 0:00:32.7]} 33. Nd4 {[%clk 0:00:27.9]}
33... Ra7 {[%clk 0:00:24.5]} 34. Rc1 {[%clk 0:00:25.5]} 34... Be4 {[%clk
0:00:17.8]} 35. a4 {[%clk 0:00:20]} 35... Bd5 {[%clk 0:00:17.4]} 36. f3 {[%clk
0:00:17.4]} 36... Nb3 {[%clk 0:00:17.1]} 37. Nxb3 {[%clk 0:00:17]} 37... Bxb3
{[%clk 0:00:18]} 38. e4 {[%clk 0:00:16.5]} 38... Ra5 {[%clk 0:00:16.3]} 39. Ra1
{[%clk 0:00:13.7]} 39... f5 {[%clk 0:00:16.3]} 40. Ra3 {[%clk 0:00:13.7]} 40...
Bc2 {[%clk 0:00:15.2]} 41. e5 {[%clk 0:00:12.2]} 41... f4 {[%clk 0:00:13.7]} 42.
Bc6 {[%clk 0:00:09.6]} 42... Kf8 {[%clk 0:00:10.7]} 43. Rc3 {[%clk 0:00:07.4]}
43... Bxa4 {[%clk 0:00:08.5]} 44. Ra3 {[%clk 0:00:06.6]} 44... Rxe5 {[%clk
0:00:05.2]} 45. Bxa4 {[%clk 0:00:06.7]} 45... Ra5 {[%clk 0:00:04.2]} 46. Ra2
{[%clk 0:00:06.8]} 46... Kg7 {[%clk 0:00:02.6]} 47. Bb3 {[%clk 0:00:06.6]} 47...
Rb5 {[%clk 0:00:02.2]} 48. Ra3 {[%clk 0:00:06.9]} 1-0

[Event "*** Titled Tuesday Blitz"]
[Site "Chess.com"]
[Date "2020.12.01"]
[Round "7"]
[White "lelya96"]
[Black "GAusal"]
[Result "1-0"]
[WhiteElo "2218"]
[BlackElo "2080"]
[TimeControl "180+1"]
[EndTime "11:16:44 PST"]
[Termination "lelya96 won by resignation"]

1. e4 {[%clk 0:02:59.9]} 1... e5 {[%clk 0:02:57.3]} 2. Nf3 {[%clk 0:02:59.1]}
2... Nc6 {[%clk 0:02:54.4]} 3. Bb5 {[%clk 0:02:58.2]} 3... a6 {[%clk 0:02:54]}
4. Ba4 {[%clk 0:02:57.7]} 4... Nf6 {[%clk 0:02:51.3]} 5. O-O {[%clk 0:02:56.9]}
5... Nxe4 {[%clk 0:02:47.8]} 6. Re1 {[%clk 0:02:55.4]} 6... Nc5 {[%clk
0:02:44.9]} 7. Nxe5 {[%clk 0:02:50.7]} 7... Nxe5 {[%clk 0:02:41.2]} 8. Rxe5+
{[%clk 0:02:49.8]} 8... Be7 {[%clk 0:02:38.1]} 9. Bb3 {[%clk 0:02:45]} 9... Nxb3
{[%clk 0:02:33.5]} 10. axb3 {[%clk 0:02:44.3]} 10... d5 {[%clk 0:02:29.3]} 11.
d4 {[%clk 0:02:29.5]} 11... Be6 {[%clk 0:02:25.6]} 12. Nc3 {[%clk 0:02:27.3]}
12... O-O {[%clk 0:02:21]} 13. Bf4 {[%clk 0:02:26.3]} 13... Bd6 {[%clk
0:02:17.1]} 14. g3 {[%clk 0:02:20.3]} 14... Bxe5 {[%clk 0:02:13.2]} 15. Bxe5
{[%clk 0:02:17.7]} 15... Qd7 {[%clk 0:02:09.6]} 16. Qd2 {[%clk 0:02:13]} 16...
f6 {[%clk 0:02:06.3]} 17. Bf4 {[%clk 0:02:12.1]} 17... Rfe8 {[%clk 0:02:02.3]}
18. Na4 {[%clk 0:02:10.2]} 18... b6 {[%clk 0:02:00.7]} 19. Nc3 {[%clk
0:02:04.9]} 19... c6 {[%clk 0:01:59.4]} 20. Na4 {[%clk 0:02:03.5]} 20... Qb7
{[%clk 0:01:45.7]} 21. Qb4 {[%clk 0:02:01.2]} 21... Bh3 {[%clk 0:01:36.6]} 22.
Qxb6 {[%clk 0:01:42.1]} 22... Qxb6 {[%clk 0:01:34.6]} 23. Nxb6 {[%clk
0:01:41.8]} 23... Ra7 {[%clk 0:01:32.8]} 24. Be3 {[%clk 0:01:38.2]} 24... g5
{[%clk 0:01:25.8]} 25. c4 {[%clk 0:01:28.6]} 25... h6 {[%clk 0:01:24.1]} 26.
cxd5 {[%clk 0:01:27.4]} 26... cxd5 {[%clk 0:01:23.7]} 27. Nxd5 {[%clk
0:01:27.3]} 27... Kg7 {[%clk 0:01:15.7]} 28. Ra5 {[%clk 0:01:21.6]} 28... Be6
{[%clk 0:01:11.2]} 29. Nc3 {[%clk 0:00:59.8]} 29... Bxb3 {[%clk 0:01:08.5]} 30.
d5 {[%clk 0:00:59.9]} 30... Bc4 {[%clk 0:01:01.8]} 31. Bxa7 {[%clk 0:00:57.6]}
31... g4 {[%clk 0:00:45.8]} 32. Be3 {[%clk 0:00:56]} 32... Rb8 {[%clk
0:00:41.9]} 33. Rc5 {[%clk 0:00:53]} 33... Bd3 {[%clk 0:00:37.9]} 34. Nd1 {[%clk
0:00:48.3]} 34... Be2 {[%clk 0:00:36.6]} 35. Rc7+ {[%clk 0:00:36.8]} 35... Kg6
{[%clk 0:00:35.6]} 36. Nc3 {[%clk 0:00:32.6]} 36... Bf3 {[%clk 0:00:33.1]} 37.
Na4 {[%clk 0:00:19.9]} 37... Rb4 {[%clk 0:00:29.7]} 38. b3 {[%clk 0:00:16.6]}
38... Rxb3 {[%clk 0:00:29.2]} 39. Rc1 {[%clk 0:00:16.9]} 39... Bxd5 {[%clk
0:00:24.7]} 40. Nc5 {[%clk 0:00:16.7]} 40... Rb2 {[%clk 0:00:21.6]} 41. Nd3
{[%clk 0:00:16.6]} 41... Ra2 {[%clk 0:00:20.4]} 42. Nf4+ {[%clk 0:00:16.6]}
42... Kf5 {[%clk 0:00:19.8]} 43. Nxd5 {[%clk 0:00:17.5]} 43... a5 {[%clk
0:00:19.6]} 44. Nc3 {[%clk 0:00:16.7]} 44... Ra3 {[%clk 0:00:18.4]} 45. Nb5
{[%clk 0:00:16.8]} 45... Ra2 {[%clk 0:00:18.1]} 46. Rc5+ {[%clk 0:00:13.3]}
46... Kg6 {[%clk 0:00:17.5]} 47. Bd4 {[%clk 0:00:12.3]} 47... h5 {[%clk
0:00:15.3]} 48. Rc6 {[%clk 0:00:12.4]} 48... Kf5 {[%clk 0:00:15.4]} 49. Rxf6+
{[%clk 0:00:12.4]} 49... Ke4 {[%clk 0:00:16.3]} 50. Nc3+ {[%clk 0:00:12.1]}
50... Kxd4 {[%clk 0:00:14.9]} 51. Nxa2 {[%clk 0:00:12.3]} 51... a4 {[%clk
0:00:15.8]} 52. Ra6 {[%clk 0:00:11.5]} 52... Kc4 {[%clk 0:00:14.8]} 53. Rxa4+
{[%clk 0:00:11]} 53... Kb3 {[%clk 0:00:15.1]} 54. Ra5 {[%clk 0:00:09.7]} 54...
Kc2 {[%clk 0:00:16]} 55. Rxh5 {[%clk 0:00:08.9]} 55... Kd3 {[%clk 0:00:16.9]}
1-0

[Event "*** Titled Tuesday Blitz"]
[Site "Chess.com"]
[Date "2020.12.01"]
[Round "7"]
[White "Aborigen_came"]
[Black "natelleka"]
[Result "1-0"]
[WhiteElo "2731"]
[BlackElo "2197"]
[TimeControl "180+1"]
[EndTime "11:16:47 PST"]
[Termination "Aborigen_came won on time"]

1. Nc3 {[%clk 0:03:00.9]} 1... d5 {[%clk 0:02:57.4]} 2. e4 {[%clk 0:03:00.3]}
2... dxe4 {[%clk 0:02:52.3]} 3. Nxe4 {[%clk 0:02:59.3]} 3... e5 {[%clk
0:02:52.3]} 4. Bc4 {[%clk 0:02:55.2]} 4... Nc6 {[%clk 0:02:48.7]} 5. Nf3 {[%clk
0:02:26.1]} 5... Bf5 {[%clk 0:02:38.4]} 6. Ng3 {[%clk 0:02:20.4]} 6... Bg6
{[%clk 0:02:35.9]} 7. O-O {[%clk 0:02:19.8]} 7... Nf6 {[%clk 0:02:34.7]} 8. Re1
{[%clk 0:02:08.3]} 8... Bc5 {[%clk 0:02:02.6]} 9. d4 {[%clk 0:01:49.8]} 9...
Nxd4 {[%clk 0:01:52.2]} 10. Rxe5+ {[%clk 0:01:46.3]} 10... Ne6 {[%clk
0:01:45.7]} 11. Qxd8+ {[%clk 0:01:36.4]} 11... Rxd8 {[%clk 0:01:32.6]} 12. Bxe6
{[%clk 0:01:35.3]} 12... Rd1+ {[%clk 0:01:26]} 13. Nf1 {[%clk 0:01:34.8]} 13...
fxe6 {[%clk 0:01:20.4]} 14. Rxc5 {[%clk 0:01:32.5]} 14... O-O {[%clk 0:01:19.7]}
15. b3 {[%clk 0:01:28.8]} 15... c6 {[%clk 0:01:14]} 16. Re5 {[%clk 0:01:23.4]}
16... Bxc2 {[%clk 0:01:10.7]} 17. Bb2 {[%clk 0:01:20.5]} 17... Rfd8 {[%clk
0:00:57.6]} 18. Rxd1 {[%clk 0:01:13.4]} 18... Rxd1 {[%clk 0:00:57.1]} 19. Re1
{[%clk 0:01:12.5]} 19... Rd8 {[%clk 0:00:43.6]} 20. Rc1 {[%clk 0:01:04.7]} 20...
Be4 {[%clk 0:00:41]} 21. Ne3 {[%clk 0:00:56.3]} 21... Bxf3 {[%clk 0:00:30.3]}
22. gxf3 {[%clk 0:00:57.2]} 22... Rd2 {[%clk 0:00:30.2]} 23. Rc2 {[%clk
0:00:55]} 23... Rd7 {[%clk 0:00:26.3]} 24. Bxf6 {[%clk 0:00:47.7]} 24... gxf6
{[%clk 0:00:25.9]} 25. Kf1 {[%clk 0:00:48]} 25... Kf7 {[%clk 0:00:25]} 26. Ke2
{[%clk 0:00:47.7]} 26... Ke7 {[%clk 0:00:25]} 27. Rd2 {[%clk 0:00:46.7]} 27...
Rc7 {[%clk 0:00:24.9]} 28. f4 {[%clk 0:00:45.5]} 28... c5 {[%clk 0:00:23.9]} 29.
f5 {[%clk 0:00:44.1]} 29... b5 {[%clk 0:00:23.3]} 30. fxe6 {[%clk 0:00:43.9]}
30... Kxe6 {[%clk 0:00:23.4]} 31. Rc2 {[%clk 0:00:40.5]} 31... Ke5 {[%clk
0:00:18.9]} 32. Ng4+ {[%clk 0:00:37.2]} 32... Kf5 {[%clk 0:00:18.5]} 33. Kf3
{[%clk 0:00:33.4]} 33... Ke6 {[%clk 0:00:14.3]} 34. Kf4 {[%clk 0:00:31.2]} 34...
c4 {[%clk 0:00:13.3]} 35. bxc4 {[%clk 0:00:31.4]} 35... bxc4 {[%clk 0:00:12.9]}
36. Ne3 {[%clk 0:00:29.3]} 36... c3 {[%clk 0:00:11.4]} 37. Ke4 {[%clk
0:00:27.7]} 37... f5+ {[%clk 0:00:09]} 38. Nxf5 {[%clk 0:00:25.1]} 38... Rc4+
{[%clk 0:00:08.7]} 39. Nd4+ {[%clk 0:00:25.2]} 39... Kd6 {[%clk 0:00:08.4]} 40.
Ke3 {[%clk 0:00:22.9]} 40... Kc5 {[%clk 0:00:07.5]} 41. Ne2 {[%clk 0:00:21.7]}
41... Kb4 {[%clk 0:00:07.7]} 42. f4 {[%clk 0:00:20.8]} 42... a5 {[%clk
0:00:05.4]} 43. Rxc3 {[%clk 0:00:19.9]} 43... Rxc3+ {[%clk 0:00:05]} 44. Nxc3
{[%clk 0:00:20.8]} 44... Kxc3 {[%clk 0:00:05.5]} 45. f5 {[%clk 0:00:21.2]} 45...
a4 {[%clk 0:00:05.8]} 46. f6 {[%clk 0:00:22.1]} 46... a3 {[%clk 0:00:06.2]} 47.
f7 {[%clk 0:00:23]} 47... Kb2 {[%clk 0:00:06.6]} 48. f8=Q {[%clk 0:00:23.9]}
48... Kxa2 {[%clk 0:00:07.1]} 49. Qb4 {[%clk 0:00:19.4]} 49... h6 {[%clk
0:00:05.7]} 50. Kd2 {[%clk 0:00:18.7]} 50... h5 {[%clk 0:00:05.2]} 51. Kc2
{[%clk 0:00:18.8]} 1-0

[Event "*** Titled Tuesday Blitz"]
[Site "Chess.com"]
[Date "2020.12.01"]
[Round "7"]
[White "Parhamov"]
[Black "Rsnr"]
[Result "0-1"]
[WhiteElo "2907"]
[BlackElo "2793"]
[TimeControl "180+1"]
[EndTime "11:16:48 PST"]
[Termination "Rsnr won on time"]

1. e4 {[%clk 0:02:48.8]} 1... c6 {[%clk 0:02:59.9]} 2. d4 {[%clk 0:02:48.4]}
2... d5 {[%clk 0:03:00.8]} 3. Nc3 {[%clk 0:02:48.9]} 3... dxe4 {[%clk
0:03:00.8]} 4. Nxe4 {[%clk 0:02:49.8]} 4... Bf5 {[%clk 0:03:01.5]} 5. Ng3 {[%clk
0:02:49.8]} 5... Bg6 {[%clk 0:03:02.1]} 6. h4 {[%clk 0:02:50.2]} 6... h6 {[%clk
0:03:02.3]} 7. Nf3 {[%clk 0:02:50.7]} 7... e6 {[%clk 0:03:02.8]} 8. Bd3 {[%clk
0:02:51.3]} 8... Bxd3 {[%clk 0:03:02.7]} 9. Qxd3 {[%clk 0:02:52.2]} 9... Nf6
{[%clk 0:03:03.2]} 10. Bf4 {[%clk 0:02:48.2]} 10... Bd6 {[%clk 0:03:03]} 11. Ne5
{[%clk 0:02:42]} 11... Bxe5 {[%clk 0:03:01]} 12. Bxe5 {[%clk 0:02:41.6]} 12...
Qa5+ {[%clk 0:03:01.4]} 13. c3 {[%clk 0:02:40.1]} 13... Nbd7 {[%clk 0:03:01.8]}
14. f4 {[%clk 0:02:37.6]} 14... O-O-O {[%clk 0:02:56.5]} 15. O-O {[%clk
0:02:37]} 15... Nxe5 {[%clk 0:02:46.9]} 16. fxe5 {[%clk 0:02:36.7]} 16... Qxe5
{[%clk 0:02:47.5]} 17. dxe5 {[%clk 0:02:03.6]} 17... Rxd3 {[%clk 0:02:48.4]} 18.
Ne2 {[%clk 0:02:03.8]} 18... Ng4 {[%clk 0:02:28.6]} 19. Rxf7 {[%clk 0:02:02.1]}
19... Rd7 {[%clk 0:02:20.3]} 20. Rf4 {[%clk 0:01:37.3]} 20... Nxe5 {[%clk
0:02:04]} 21. Re4 {[%clk 0:01:37.4]} 21... Nd3 {[%clk 0:02:04.2]} 22. b4 {[%clk
0:01:36.6]} 22... e5 {[%clk 0:02:03.3]} 23. Rf1 {[%clk 0:01:33.4]} 23... Rhd8
{[%clk 0:02:02.9]} 24. Ng3 {[%clk 0:01:28.6]} 24... c5 {[%clk 0:01:53.9]} 25. a3
{[%clk 0:01:25.1]} 25... cxb4 {[%clk 0:01:46.7]} 26. axb4 {[%clk 0:01:25]} 26...
Rc7 {[%clk 0:01:47.1]} 27. Ne2 {[%clk 0:01:21.1]} 27... b5 {[%clk 0:01:47]} 28.
Rf3 {[%clk 0:01:18.2]} 28... Kb7 {[%clk 0:01:40.7]} 29. Rg4 {[%clk 0:01:15.7]}
29... Rd6 {[%clk 0:01:30.8]} 30. Kh2 {[%clk 0:01:04.3]} 30... Kb6 {[%clk
0:01:27.2]} 31. Ng3 {[%clk 0:01:02]} 31... Nf4 {[%clk 0:01:10.5]} 32. Ne4 {[%clk
0:00:55.3]} 32... Rdc6 {[%clk 0:01:10.3]} 33. Nc5 {[%clk 0:00:47.3]} 33... Ne6
{[%clk 0:01:02.3]} 34. Ne4 {[%clk 0:00:44.6]} 34... Rc4 {[%clk 0:00:55.4]} 35.
Re3 {[%clk 0:00:41.5]} 35... g5 {[%clk 0:00:43.2]} 36. Rgg3 {[%clk 0:00:31]}
36... a5 {[%clk 0:00:14.6]} 37. bxa5+ {[%clk 0:00:30.6]} 37... Kxa5 {[%clk
0:00:15.5]} 38. h5 {[%clk 0:00:11.8]} 38... Nf4 {[%clk 0:00:12.8]} 39. Nd6
{[%clk 0:00:08.4]} 39... R4c5 {[%clk 0:00:13.3]} 40. Ne4 {[%clk 0:00:04]} 40...
R5c6 {[%clk 0:00:13.1]} 41. Rgf3 {[%clk 0:00:03.2]} 41... Kb6 {[%clk 0:00:12.3]}
42. g3 {[%clk 0:00:03.2]} 42... Nxh5 {[%clk 0:00:12.6]} 43. Rf2 {[%clk
0:00:02.2]} 43... Ng7 {[%clk 0:00:12.7]} 44. Nf6 {[%clk 0:00:02.8]} 44... Kb7
{[%clk 0:00:08.2]} 45. Nd5 {[%clk 0:00:01.4]} 45... Rd7 {[%clk 0:00:07.3]} 46.
Nb4 {[%clk 0:00:01.8]} 46... Rc5 {[%clk 0:00:06.1]} 0-1